Cogmind - Beta 13 @@@ ROGUE MODE // 2024.04.17 @ 19:12:28 Player: Tuks Result: Destroyed by G-47 Trooper with Particle Gun Performance ------------- Evolutions (2) 1000 Regions Visited (3) 600 Robots Destroyed (11) 55 Value Destroyed (419) 419 Prototype IDs (0) 0 Alien Tech Used (0) 0 Bonus (0) 0 TOTAL SCORE: 2074 Bonus ------- None Cogmind --------- Core Integrity 0/550 Matter 278/300 Energy 87/100 System Corruption 0% Temperature Warm (121) Movement Core (350) Ox6 Location -8/Materials Parts ------- > --- POWER (1) -------- (None) > --- PROPULSION (4) --- (None) > --- UTILITY (4) ------ Large Storage Unit Signal Interpreter > --- WEAPON (2) ------- (None) > --- INVENTORY (15) --- Light Deuterium Engine Light Deuterium Engine Light Treads Improved Heat Sink Improved Sensor Array Beam Rifle Heavy Particle Cannon Heavy Assault Rifle Heavy Assault Rifle Peak State ------------ > --- POWER ------------ Light Deuterium Engine > --- PROPULSION ------- Advanced Treads Advanced Treads Advanced Treads Advanced Treads > --- UTILITY ---------- Improved Heat Sink Improved Heat Sink Small Storage Unit Large Storage Unit > --- WEAPON ----------- Small Laser Beam Rifle > --- INVENTORY -------- Ion Engine Light Treads Heavy Assault Rifle Heavy Assault Rifle [Rating: 26] Favorites ----------- Power Ion Engine Engine Ion Engine Propulsion Advanced Treads Treads Advanced Treads Leg Aluminum Leg Utility Small Storage Unit Device Improved Heat Sink Storage Small Storage Unit Processor Signal Interpreter Weapon Assault Rifle Energy Gun Beam Rifle Ballistic Gun Assault Rifle Build | -11 -10 -9 -8 ------- Run | Yrd Mat Mat Mat Slots Evolved 4 | . . 2 2 Power . | . . . . Propulsion 2 | . . 2 . Utility 2 | . . . 2 Weapon . | . . . . Parts Attached 31 | 7 . 16 8 Power 5 | 1 . 2 2 Engine 5 | 1 . 2 2 Core . | . . . . Reactor . | . . . . Propulsion 6 | 2 . 4 . Treads 4 | . . 4 . Leg 2 | 2 . . . Wheel . | . . . . Hover . | . . . . Flight . | . . . . Utility 9 | 2 . 3 4 Device 2 | . . 1 1 Storage 6 | 2 . 2 2 Processor 1 | . . . 1 Hackware . | . . . . Protection . | . . . . Artifact . | . . . . Weapon 11 | 2 . 7 2 Energy Gun 4 | . . 4 . Energy Cannon . | . . . . Ballistic Gun 7 | 2 . 3 2 Ballistic Cannon . | . . . . Launcher . | . . . . Special Weapon . | . . . . Impact Weapon . | . . . . Slashing Weapon . | . . . . Piercing Weapon . | . . . . Special Melee Weapon . | . . . . Unidentified Prototypes . | . . . . Parts Lost 19 | . . 9 10 Power 3 | . . 2 1 Propulsion 6 | . . 2 4 Utility 2 | . . . 2 Weapon 8 | . . 5 3 Highest Loss Streak 10 | . . 8 10 To Critical Strikes 1 | . . 1 . Average Slot Usage (%) 78 | . 85 71 88 Engine 9 | . 14 8 7 Treads 21 | . . 23 32 Leg 9 | . 28 7 . Device 4 | . . 3 9 Storage 13 | . 14 11 17 Processor 1 | . . . 6 Energy Gun 8 | . . 8 15 Ballistic Gun 10 | . 28 8 1 Naked Turns . | . . . . Heaviest Build 36 | 12 12 30 36 Greatest Support 88 | 20 20 88 88 Greatest Overweight (x) 1 | . . 1 . Average Overweight (x) . | . . . . Largest Inventory Capacity 15 | 8 8 15 15 Average Capacity 10 | 7 8 10 15 Most Carried 10 | 5 4 6 10 Average Carried 4 | 2 2 4 6 Final Capacity 15 | 8 8 15 15 Final Carried 9 | 2 4 5 9 Class Distribution -------------------- 100% | Mutant Dominant Class ---------------- Mutant | -10/Materials Mutant | -9/Materials Mutant | -8/Materials Resources | -11 -10 -9 -8 ----------- Run | Yrd Mat Mat Mat Matter Collected 542 | 270 30 182 60 Remotely . | . . . . Salvage Created 498 | . 88 270 140 Parts 30 | . 2 20 8 Haulers Intercepted . | . . . . Recyclers Shooed . | . . . . Parts Field Recycled . | . . . . Retrieved Matter . | . . . . Parts Self-Destructed . | . . . . Prevented . | . . . . Kills | -11 -10 -9 -8 ------- Run | Yrd Mat Mat Mat Combat Hostiles Destroyed 9 | . 2 5 2 Guns 9 | . 2 5 2 Classes Destroyed 3 | . 1 2 . Watcher 2 | . . 1 1 Grunt 6 | . 2 2 2 Sentry 3 | . . 3 . Best Kill Streak 2 | . 2 2 1 Combat Bots Only 2 | . 2 2 1 Max Kills in Single Turn 1 | . 1 1 1 Gunslinging . | . . . . Exploded . | . . . . Melee . | . . . . Uniques/NPCs Destroyed . | . . . . Combat | -11 -10 -9 -8 -------- Run | Yrd Mat Mat Mat Hostile Shots Fired 263 | . 10 92 161 Missed 66 | . 1 22 43 Damage Taken 2967 | . 115 967 1885 Core 772 | . 15 196 561 Absorbed by Shields . | . . . . Core Remaining (%) 81 | 100 94 51 . Volleys Fired 62 | . 5 36 21 Largest 2 | . 2 2 2 Hottest 96 | . 40 96 96 Shots Fired 94 | . 10 49 35 Gun 94 | . 10 49 35 Cannon . | . . . . Launcher . | . . . . Special . | . . . . Kinetic 51 | . 10 33 8 Thermal 37 | . . 10 27 Explosive . | . . . . Electromagnetic 6 | . . 6 . Robot Hit Streak 8 | . 6 8 8 Robot Miss Streak 4 | . 3 3 4 Penetration Max . | . . . . Secondary Targets 1 | . 1 . . Max Gunslinging Chain 1 | . 1 . . Shots Hit Robots 70 | . 6 36 28 Core Hits 31 | . 5 14 12 Critical Kills . | . . . . Critical Parts Destroyed . | . . . . Critical Strikes 1 | . . . 1 Burn 1 | . . . 1 Melee Attacks . | . . . . Impact . | . . . . Slashing . | . . . . Piercing . | . . . . Sneak Attacks . | . . . . Combat Hostiles . | . . . . Follow-up Attacks . | . . . . Damage Inflicted 955 | . 73 399 483 Guns 944 | . 73 399 472 Cannons . | . . . . Explosions . | . . . . Melee . | . . . . Ramming 11 | . . . 11 Kinetic 552 | . 73 271 208 Thermal 361 | . . 97 264 Explosive . | . . . . Electromagnetic 31 | . . 31 . Impact . | . . . . Slashing . | . . . . Piercing . | . . . . Highest Corruption . | . . . . Average Corruption . | . . . . Corruption Purged . | . . . . Corruption Blocked . | . . . . Overload Shots . | . . . . Overflow Damage . | . . . . Projectiles . | . . . . Explosions . | . . . . Melee . | . . . . Knockbacks . | . . . . Impact . | . . . . Kinetic . | . . . . Secondary . | . . . . Self-Inflicted Damage . | . . . . Shots . | . . . . Rammed 1 | . . . 1 Targets Rammed 1 | . . . 1 Kicked . | . . . . Crushed . | . . . . Highest Temperature 89 | . 9 33 89 Average Temperature 19 | . 3 11 30 Received Heat Transfer 1443 | . 66 396 981 Siege Activations . | . . . . Robots Corrupted . | . . . . Combat Hostiles . | . . . . Parts Fried . | . . . . Impact Corruptions . | . . . . Robots Melted . | . . . . Combat Hostiles . | . . . . Parts Melted 4 | . . 2 2 Heat Transferred 966 | . . 248 718 Parts Sabotaged . | . . . . Parts Stolen . | . . . . Parts Stripped . | . . . . Power Chain Reactions . | . . . . Alert | -11 -10 -9 -8 ------- Run | Yrd Mat Mat Mat Peak Influence 128 | . 102 128 127 Initial 53 | . . 42 53 Average 55 | . 15 62 83 Maximum Alert Level . | . . . . Low Security (%) 100 | 100 100 100 100 Level 1 . | . . . . Level 2 . | . . . . Level 3 . | . . . . Level 4 . | . . . . Level 5 . | . . . . High Security . | . . . . Max Security . | . . . . Squads Dispatched 2 | . . 1 1 Investigation 2 | . . 1 1 Extermination . | . . . . Reinforcement . | . . . . Assault . | . . . . Garrison . | . . . . Intercept . | . . . . Searches Triggered . | . . . . Construction Impeded . | . . . . Haulers Reinforced . | . . . . Active Scanning Responses . | . . . . Cargo Convoy Interrupts . | . . . . Stealth | -11 -10 -9 -8 --------- Run | Yrd Mat Mat Mat Distress Signals 6 | . . 4 2 Communications Jammed . | . . . . Distress Signals . | . . . . Times Spotted 32 | . 8 8 16 Peak Tracking Total 13 | . 5 6 13 Tactical Retreats . | . . . . Traps | -11 -10 -9 -8 ------- Run | Yrd Mat Mat Mat Traps Triggered . | . . . . Indirectly . | . . . . Trap Hack Attempts . | . . . . Triggered . | . . . . Disarmed . | . . . . Reprogrammed . | . . . . Reused . | . . . . Traps Extracted . | . . . . Installed . | . . . . Triggered . | . . . . Machines | -11 -10 -9 -8 ---------- Run | Yrd Mat Mat Mat Machines Disabled . | . . . . Max in Single Turn . | . . . . Machines Repaired . | . . . . Machines Dismantled . | . . . . Machines Sabotaged . | . . . . Overloaded Fab Kills . | . . . . Hacking | -11 -10 -9 -8 --------- Run | Yrd Mat Mat Mat Machines Accessed 6 | . 2 2 2 Terminals 5 | . 2 2 1 Fabricators . | . . . . Repair Stations . | . . . . Recycling Units . | . . . . Scanalyzers 1 | . . . 1 Garrison Access . | . . . . Total Hacks 15 | . 4 5 6 Successful 11 | . 4 2 5 Failed 4 | . . 3 1 Catastrophic 1 | . . 1 . Database Lockouts . | . . . . Manual . | . . . . Terminals 11 | . 4 5 2 Fabricators . | . . . . Repair Stations . | . . . . Recycling Units . | . . . . Scanalyzers 4 | . . . 4 Garrison Access . | . . . . Terminal Hacks 7 | . 4 2 1 Record 1 | . . 1 . Robot Analysis 1 | . 1 . . Terminal Index 1 | . . . 1 Locate Traps 1 | . 1 . . Hauler Manifests 1 | . 1 . . Zone Layout 2 | . 1 1 . Fabricator Hacks . | . . . . Repair Station Hacks . | . . . . Recycling Unit Hacks . | . . . . Scanalyzer 4 | . . . 4 Insert Component 2 | . . . 2 Analyze 2 | . . . 2 Garrison Access Hacks . | . . . . Unauthorized Hacks . | . . . . Terminals . | . . . . Fabricators . | . . . . Repair Stations . | . . . . Recycling Units . | . . . . Scanalyzers . | . . . . Garrison Access . | . . . . Data Cores Recovered . | . . . . Used . | . . . . Hacking Detections 5 | . 1 2 2 Full Trace Events 1 | . . . 1 Feedback Events . | . . . . Feedback Blocked . | . . . . Robot Schematics Acquired . | . . . . Robots Built . | . . . . Authchips . | . . . . Time . | . . . . Total Robot Build Rating . | . . . . Part Schematics Acquired 2 | . . . 2 Parts Built . | . . . . Authchips . | . . . . Time . | . . . . Total Part Build Rating . | . . . . Parts Repaired . | . . . . Time . | . . . . Parts Recycled . | . . . . Recycled Matter . | . . . . Retrieved Matter . | . . . . Retrieved Components . | . . . . Parts Scanalyzed 2 | . . . 2 Part Schematics Acquired 2 | . . . 2 Parts Damaged . | . . . . Bothacking | -11 -10 -9 -8 ------------ Run | Yrd Mat Mat Mat Used RIF Installer . | . . . . Robots Hacked . | . . . . Non-combat . | . . . . Combat . | . . . . Robot Hacks Applied . | . . . . Relay Couplers Released . | . . . . Fabnet Peak Effective % . | . . . . Robots Rewired . | . . . . Allies Hacked . | . . . . Hacks Repelled . | . . . . Allies | -11 -10 -9 -8 -------- Run | Yrd Mat Mat Mat Total Allies . | . . . . Largest Group . | . . . . Highest-Rated Group . | . . . . Highest-Rated Ally . | . . . . Total Orders . | . . . . Ally Attacks . | . . . . Total Damage . | . . . . Kills . | . . . . Allies Corrupted . | . . . . Allies Melted . | . . . . Intel | -11 -10 -9 -8 ------- Run | Yrd Mat Mat Mat Robot Analysis Total 1 | . 1 . . Derelict Logs Recovered . | . . . . Drone Launches . | . . . . Drone Recoveries . | . . . . Exploration | -11 -10 -9 -8 ------------- Run | Yrd Mat Mat Mat Turns Passed 708 | 43 141 337 187 Spaces Moved 374 | 28 104 167 75 Core 19 | 7 . 12 . Treads 174 | . . 99 75 Legs 181 | 21 104 56 . Wheels . | . . . . Hover . | . . . . Flight . | . . . . Fastest Speed 50 | 50 120 100 145 Average Speed 129 | 102 120 133 145 Slowest Speed 145 | 120 120 145 145 Overloaded Moves . | . . . . Propulsion Burnouts . | . . . . Robots Hopped . | . . . . Cave-ins Triggered . | . . . . Exploration Rate (%) 14 | 3 24 21 11 Regions Visited 3 Branch Regions . Pre-discovered Areas . | . . . . Known Exits Taken . | . . . . Unknown Exits Taken 3 | 1 1 1 . Scrap Searched . | . . . . Spaces Dug . | . . . . Terrain Destroyed . | . . . . Melee . | . . . . Projectile . | . . . . AOE . | . . . . Terrain Rammed . | . . . . Walls Destroyed . | . . . . Machines Disabled . | . . . . Actions | -11 -10 -9 -8 --------- Run | Yrd Mat Mat Mat Total 505 | 43 110 235 117 Wait 4 | . . 1 3 Move 371 | 27 103 166 75 Hop . | . . . . Pick Up 31 | 8 2 14 7 Fast Attach . | . . . . Attach 25 | 7 . 13 5 Detach 4 | 1 . 1 2 Swap 6 | . . 3 3 Drop 1 | . . 1 . Fire 62 | . 5 36 21 Melee . | . . . . Ram . | . . . . Kick . | . . . . Crush 1 | . . . 1 Escape Stasis . | . . . . Rewire . | . . . . Trap . | . . . . Miscellaneous . | . . . . Route ------- -11/Scrapyard -10/Materials (discovered 2 exits: *Mat / [*Min]) -9/Materials -8/Materials History --------- Turn | Location | Event 19 | -11/Scrapyard | Discovered new exit (range 15) 44 | -11/Scrapyard | Entered Materials 58 | -10/Materials | Discovered new exit (range 15) 115 | -10/Materials | Discovered new exit (range 13) 185 | -10/Materials | Entered another Materials area 185 | -9/Materials | Evolved 2 slots: Propulsion x2 307 | -9/Materials | Build established: Mutant 336 | -9/Materials | Lost 8 parts (2p2n4w) 497 | -9/Materials | Discovered new exit (range 16) 522 | -9/Materials | Entered another Materials area 522 | -8/Materials | Evolved 2 slots: Utility x2 704 | -8/Materials | Core integrity fell below 50% 709 | -8/Materials | Core integrity fell below 20% 709 | -8/Materials | Destroyed by G-47 Trooper with Particle Gun Last Messages --------------- Critical hit (Burn: +37). Acquired Hpw. Shotgun. Critical hit (Burn: +37). Terminal disabled. Adv. Treads destroyed. Acquired Hpw. Shotgun. R-06 Scavenger collects Imp. Hover Unit. Adv. Treads destroyed. M-13 Machinist repairs G-47 Trooper. Adv. Treads destroyed. G-47 Trooper destroyed. Imp. Heat Sink destroyed. Critical hit (Burn: +37). R-06 Scavenger collects Imp. Signal Interpreter. Sml. Storage Unit destroyed. Hpw. Shotgun destroyed. U-05 Engineer builds a Door. U-05 Engineer destroyed. Hpw. Shotgun destroyed. Critical hit (Burn: +37). Map ----- +----------------------------------------------------+ | ????????????????????# #???# """ #??????????? | | ????????????????????# #???# #??????????? | | ??????????########### ##??# #??????????? | | ??? ########/######?????????? | | ??????????########## #?????????? | | ???????????????????# = #?????????? | | ???????????????????# % #?????????? | | ???????????????????# ####### #####?????????? | | ???????????????????##### #?????# #?????????????? | | ???????????????????????# #?????# #?????????????? | | ???????????????????????# #?????# +?????????????? | | ???????????????????????# #?????# #?????????????? | | ???????????????????????#t#????? #?????????????? | | ???????????????????????# #?????# #?????????????? | | ???????????????????????# #?????# #?????????????? | | ???????????????????????#a#?????# #?????????????? | | ?????????????????????### ##????# #?????????????? | | ?????????????????????# #????# #?????????????? | | ?????????????????????# ###### #?????????????? | | ?????????????????????# #?????????????? | | ?????????????????????# #?????????????? | | ?????????????????????#! T #?????????????? | | ?????????????????????#Ygg ggg""" #?????????????? | | ?????????????????????# Yhgr """ #?????????????? | | ?????????????????????#u [[ g""" #?????????????? | | ?????????????????????# * @ m% #?????????????? | | ??????????????# +=u! g +?????????????? | | ??????????????# " # | #?????????????? | | ??????????????# =??# ## #?????????????? | | ??????????????###????#a ########??#?????????????? | | ?????????????????????# #???????????????????????? | | ?????????????????????# #???????????????????????? | | ?????????????????????# #???????????????????????? | | ?????????????????????# #???????????????????????? | | ?????????????????????# ????????????????????????? | | ????????????????????? ????????????????????????? | | ????????????????????? ????????????????????????? | | ????????????????????# ????????????????????????? | | ????????????????????# ????????????????????????? | | ????????????????????# ????????????????????????? | | ?????????????????????? ????????????????????????? | | ?????????????????????????????????????????????????? | | ?????????????????????????????????????????????????? | | ?????????????????????????????????????????????????? | | ?????????????????????????????????????????????????? | | ?????????????????????????????????????????????????? | | ?????????????????????????????????????????????????? | | ?????????????????????????????????????????????????? | | ?????????????????????????????????????????????????? | | ?????????????????????????????????????????????????? | +----------------------------------------------------+ Best States ------------- Heat Dissipation 59 Energy Generation 10 Energy Capacity 250 Matter Stores 300 Matter Capacity 300 Sight Range 16 Terrain Scan Density 10 Evasion (%) 55 Recoil Reduction 4 Item Schematics ----------------- Hvy. Assault Rifle | -8/Materials | Scanalyzed Lgt. Deuterium Engine | -8/Materials | Scanalyzed Robot Schematics ------------------ None Fabricated ------------ Nothing Alien Tech Used ----------------- None Achievements -------------- None Challenges ------------ None Game ------ Seed GaussFlightCannon Manual? 0 Play Time 00:12:26 Cumulative 4.5 hours Start 2024.04.17 @ 18:59:57 End 2024.04.17 @ 19:12:28 Sessions 1 Manual Loads 0 Difficulty Rogue Special Mode None Game No. 9 Rogue 9 Adventurer 0 Explorer 0 Win Type - Total 0 Types 0/0/0/0/0/0/0/0/0 Lore% 14 Gallery% 9 Achievement% 8 Wizard Run 0 Options --------- Layout 1 ASCII 0 Keyboard 0 Movement Mouse Keybinds 0 Fullscreen 2 Font 24/Crisp Map View 50x35 Zoom Use 0% Tactical HUD 0 Map Filters NONE Filters NONE Steam 1 RUN: a9d67b00-7fae-48b4-b87b-d9fd96430b5a